bitfinex/quotes_BTCUSD_20240901
["timestamp","ask_amount","ask_price","bid_price","bid_amount"]
[1725202007215,0.00102044,58199.0,58198.0,1.325789]
[1725202007454,0.00102044,58199.0,58198.0,1.42841279]
[1725202007699,0.00102044,58199.0,58198.0,1.4540701]
[1725202008287,0.00102044,58199.0,58198.0,1.8027241]
[1725202008501,0.00102044,58199.0,58198.0,1.330789]
[1725202008702,0.00102044,58199.0,58198.0,1.45914696]
[1725202009337,0.00102044,58199.0,58198.0,1.330789]
[1725202009555,0.00102044,58199.0,58198.0,1.45916668]
[1725202009776,0.00102044,58199.0,58198.0,1.684443]
[1725202010615,0.1542,58215.0,58214.0,1.202456]
[1725202011658,0.1166,58219.0,58214.0,1.202456]
[1725202011659,0.2722,58219.0,58218.0,1.202376]
[1725202013584,0.2722,58219.0,58218.0,0.85884]
[1725202014089,0.2722,58219.0,58218.0,0.515304]
[1725202014294,0.2722,58219.0,58204.0,0.4755]
[1725202014295,0.1166,58219.0,58204.0,0.4755]
[1725202014512,0.1556,58217.0,58213.0,0.343561]
[1725202014729,0.1556,58217.0,58215.0,0.171774]
[1725202015166,0.1556,58217.0,58213.0,0.171781]
[1725202015594,0.1556,58217.0,58212.0,0.343571]
[1725202016027,0.1556,58217.0,58216.0,0.171774]
[1725202016241,0.1556,58217.0,58216.0,0.515322]
[1725202016458,0.1556,58217.0,58216.0,0.85887]
[1725202019592,0.156417,58217.0,58216.0,0.85887]
[1725202020701,0.000817,58217.0,58216.0,1.764366]
[1725202020909,0.000817,58217.0,58216.0,1.942966]
[1725202022071,0.000817,58217.0,58216.0,1.668966]
[1725202022306,0.000817,58217.0,58216.0,1.325418]
[1725202022521,0.000817,58217.0,58216.0,1.302418]
[1725202022736,0.260917,58217.0,58216.0,1.302418]
[1725202023166,0.260917,58217.0,58216.0,0.95887]
[1725202023400,0.432689,58217.0,58207.0,0.171797]
[1725202023623,0.1481,58216.0,58215.0,0.515331]
[1725202025113,0.000817,58217.0,58215.0,0.858885]
[1725202025346,0.000817,58217.0,58216.0,0.17520906]
[1725202025557,0.112,58222.0,58221.0,0.171759]
[1725202025558,0.05626377,58222.0,58221.0,0.171759]
[1725202025772,0.05626377,58222.0,58221.0,0.858795]
[1725202026934,0.05626377,58222.0,58221.0,0.515277]
[1725202027157,0.05626377,58222.0,58205.0,0.105]
[1725202027377,0.17177,58218.0,58211.0,0.343575]
[1725202027584,0.05626377,58222.0,58211.0,0.343575]
[1725202027794,0.34348,58228.0,58214.0,0.171779]
[1725202027795,0.00344243,58221.0,58214.0,0.171779]
[1725202028011,0.171767,58219.0,58214.0,0.171778]
[1725202028221,0.171764,58220.0,58214.0,0.171778]
[1725202028428,0.171765,58219.0,58214.0,0.171778]
[1725202028639,0.112,58217.0,58215.0,0.171776]
[1725202028868,0.112,58217.0,58216.0,0.171774]
[1725202029125,0.112,58217.0,58213.0,0.343562]
[1725202029126,0.2601,58227.0,58214.0,0.00343537]
[1725202029386,0.2601,58227.0,58223.0,0.171752]
[1725202029613,0.171747,58226.0,58221.0,0.171758]
[1725202029849,0.171747,58226.0,58219.0,0.171763]
[1725202029850,0.171752,58224.0,58219.0,0.171763]
[1725202030088,0.2601,58223.0,58212.0,0.443567]
[1725202030295,0.2601,58223.0,58222.0,0.171756]
[1725202030756,0.2601,58223.0,58222.0,0.515268]
[1725202032132,0.2601,58223.0,58222.0,0.85878]
[1725202032361,0.000817,58227.0,58221.0,0.343517]
[1725202032591,0.000817,58227.0,58226.0,0.171744]
[1725202032815,0.000817,58227.0,58226.0,1.202211]
[1725202033067,0.000817,58227.0,58226.0,0.958722]
[1725202034625,0.000817,58227.0,58226.0,1.302211]
[1725202034849,0.000817,58227.0,58226.0,0.958722]
[1725202035920,0.000817,58227.0,58226.0,1.302211]
[1725202036143,0.000817,58227.0,58226.0,1.582111]
[1725202036569,0.000817,58227.0,58226.0,1.584111]
[1725202037297,0.000817,58227.0,58226.0,1.582111]
[1725202037577,0.000817,58227.0,58226.0,1.584111]
[1725202038050,0.000817,58227.0,58226.0,1.559111]
[1725202038267,0.000817,58227.0,58226.0,1.582111]
[1725202039630,0.000817,58227.0,58226.0,1.325211]
[1725202040059,0.000817,58227.0,58226.0,1.302211]
[1725202040981,0.000817,58227.0,58226.0,0.958722]
[1725202041681,0.000817,58227.0,58226.0,0.271744]
[1725202041907,0.000817,58227.0,58216.0,0.4755]
[1725202041908,0.145217,58227.0,58216.0,0.4755]
[1725202042132,0.145217,58227.0,58224.0,0.343497]
[1725202042354,0.145217,58227.0,58216.0,0.4755]
[1725202042355,0.000817,58227.0,58226.0,0.515233]
[1725202043893,0.000817,58227.0,58226.0,0.171744]
[1725202044121,0.000817,58227.0,58226.0,0.515233]
[1725202044356,0.000817,58227.0,58226.0,1.202211]
[1725202044865,0.000817,58227.0,58226.0,1.9306]
[1725202045544,0.000817,58227.0,58226.0,1.93138321]
[1725202047425,0.000817,58227.0,58226.0,1.93638321]
[1725202048063,0.000817,58227.0,58226.0,2.27987221]
[1725202049147,0.000817,58227.0,58226.0,1.93638321]
[1725202051085,0.000817,58227.0,58226.0,1.93838321]
[1725202051734,0.000817,58227.0,58226.0,1.94838321]
[1725202052841,0.000817,58227.0,58226.0,1.94638321]
[1725202053259,0.000817,58227.0,58226.0,2.29187221]
[1725202053922,0.000817,58227.0,58226.0,2.28987221]
[1725202054866,0.000817,58227.0,58226.0,2.29187221]
[1725202055313,0.000817,58227.0,58226.0,2.29087221]
[1725202055532,0.000817,58227.0,58226.0,2.39252731]
[1725202055740,0.000817,58227.0,58226.0,2.39452731]
[1725202055955,0.000817,58227.0,58226.0,1.94638321]
[1725202056182,0.000817,58227.0,58226.0,1.94838321]
[1725202056833,0.000817,58227.0,58226.0,1.94638321]
[1725202057045,0.000817,58227.0,58226.0,1.94838321]
[1725202057710,0.000817,58227.0,58226.0,2.39452731]
[1725202058347,0.00013,58230.0,58229.0,1.90409]
[1725202058587,1e-06,58230.0,58229.0,2.72190619]
[1725202058796,1e-06,58230.0,58229.0,2.74777988]
[1725202058999,1e-06,58230.0,58229.0,2.619461]
[1725202059411,0.00817,58238.0,58236.0,1.809335]
[1725202059627,0.00817,58238.0,58236.0,1.932335]
[1725202060998,0.00817,58238.0,58236.0,1.927335]
[1725202061220,0.00817,58238.0,58236.0,1.668435]
[1725202061429,0.00817,58238.0,58236.0,1.673435]
[1725202062089,0.00817,58238.0,58236.0,1.683435]
[1725202062536,0.00817,58238.0,58236.0,1.668435]
[1725202062747,0.14367,58238.0,58236.0,1.30776757]
[1725202063187,0.00817,58238.0,58236.0,1.30776757]
[1725202064532,0.00817,58238.0,58236.0,0.271715]
[1725202064723,0.00817,58238.0,58236.0,0.515145]
[1725202064724,0.25337,58237.0,58236.0,0.515145]
[1725202065594,0.25337,58237.0,58236.0,0.858575]
[1725202065595,0.25137,58237.0,58236.0,0.858575]
[1725202066653,0.25137,58237.0,58236.0,0.515145]
[1725202066886,0.25137,58237.0,58236.0,0.171715]
[1725202067096,0.25137,58237.0,58236.0,0.514145]
[1725202067528,0.25137,58237.0,58236.0,0.170715]
[1725202067713,0.25137,58237.0,58236.0,0.514145]
[1725202068000,0.25137,58237.0,58236.0,0.528145]
[1725202068001,0.25237,58237.0,58236.0,0.528145]
[1725202068255,0.00717,58237.0,58236.0,1.215005]
[1725202069205,0.00717,58237.0,58236.0,1.238005]
[1725202070496,0.00717,58237.0,58236.0,1.215005]
[1725202072492,0.00717,58237.0,58236.0,0.184715]
[1725202072703,0.26107,58237.0,58236.0,0.014]
[1725202073117,0.26451243,58237.0,58236.0,0.014]
[1725202073325,0.26107,58237.0,58236.0,0.014]
[1725202073534,0.43622443,58237.0,58236.0,0.014]
[1725202073958,0.1455,58233.0,58229.0,0.171732]
[1725202074144,0.00344243,58232.0,58228.0,0.171738]
[1725202074290,0.1455,58231.0,58228.0,0.171738]
[1725202074704,0.1455,58231.0,58226.0,0.343488]
[1725202074705,0.1455,58231.0,58229.0,0.171734]
[1725202075334,0.1455,58231.0,58230.0,0.171732]
[1725202075541,0.1455,58231.0,58230.0,0.515197]
[1725202075963,0.1082,58233.0,58232.0,0.515179]
[1725202077189,0.1092,58233.0,58232.0,0.527179]
[1725202077412,0.1092,58233.0,58232.0,0.183726]
[1725202078497,0.1092,58233.0,58232.0,0.527179]
[1725202078699,0.1092,58233.0,58232.0,0.012]
[1725202078911,0.1092,58233.0,58232.0,0.527179]
[1725202079124,0.1092,58233.0,58232.0,0.183726]
[1725202079352,0.2539,58233.0,58232.0,0.012]
[1725202079543,0.425623,58233.0,58232.0,0.012]
[1725202079956,0.76907,58233.0,58232.0,0.012]
[1725202080163,0.2539,58233.0,58232.0,0.012]
[1725202080367,0.001,58233.0,58232.0,0.183726]
[1725202080581,0.001,58233.0,58232.0,0.870632]
[1725202080827,0.001,58233.0,58232.0,0.527179]
[1725202081013,0.1082,58236.0,58235.0,0.171718]
[1725202081431,0.00617,58237.0,58236.0,0.171715]
[1725202081646,0.00617,58237.0,58236.0,0.858575]
[1725202081906,0.00617,58237.0,58236.0,1.202005]
[1725202082138,0.00617,58237.0,58236.0,1.325005]
[1725202083065,0.00617,58237.0,58236.0,1.812835]
[1725202083921,0.00717,58237.0,58236.0,1.824835]
[1725202084379,0.00617,58237.0,58236.0,2.02745108]
[1725202084600,0.00617,58237.0,58236.0,2.03245108]
[1725202084813,0.00717,58237.0,58236.0,1.941735]
[1725202085012,0.00577972,58258.0,58257.0,0.514959]
[1725202085448,0.00577972,58258.0,58257.0,0.858265]
[1725202087200,0.00577972,58258.0,58257.0,1.201571]
[1725202087418,0.00577972,58258.0,58257.0,0.858265]
[1725202088761,0.00577972,58258.0,58257.0,0.514959]
[1725202088992,0.00577972,58258.0,58257.0,0.171653]
[1725202089465,0.00577972,58258.0,58257.0,0.175653]
[1725202089905,0.00577972,58258.0,58257.0,0.171653]
[1725202090137,0.00922215,58258.0,58249.0,0.343351]
[1725202090350,0.00922215,58258.0,58257.0,0.005]
[1725202090351,0.18087315,58258.0,58257.0,0.005]
[1725202090688,0.18087315,58258.0,58253.0,0.171664]
[1725202091074,0.18087315,58258.0,58240.0,0.343404]
[1725202091075,0.1066,58254.0,58240.0,0.343404]
[1725202091279,0.1066,58254.0,58236.0,0.50540786]
[1725202091280,0.171677,58249.0,58244.0,0.17169]
[1725202091491,0.1367,58247.0,58244.0,0.17169]
[1725202091903,0.1367,58247.0,58236.0,0.343429]
[1725202092111,0.1367,58247.0,58240.0,0.343404]
[1725202092324,0.1367,58247.0,58243.0,0.171693]
[1725202092536,0.31182643,58247.0,58242.0,0.171696]
[1725202092749,0.14014243,58247.0,58242.0,0.171696]
[1725202093174,0.1066,58254.0,58237.0,0.1]
[1725202093175,0.1367,58251.0,58246.0,0.171683]
[1725202093388,0.1367,58251.0,58247.0,0.171682]
[1725202093834,0.308371,58251.0,58247.0,0.171682]
[1725202094040,0.308371,58251.0,58244.0,0.343383]
[1725202094246,0.1367,58251.0,58247.0,0.171681]
[1725202094900,0.30837,58251.0,58247.0,0.171681]
[1725202095115,0.1367,58251.0,58247.0,0.171681]
[1725202095328,0.1367,58256.0,58253.0,0.343329]
[1725202095531,0.1367,58256.0,58245.0,0.1325]
[1725202095746,0.1367,58256.0,58255.0,0.171659]
[1725202096923,0.1367,58256.0,58254.0,0.171661]
[1725202097940,0.11237972,58258.0,58255.0,0.171659]
[1725202099039,0.1392,58256.0,58238.0,0.107]
[1725202099259,0.171662,58254.0,58248.0,0.171677]
[1725202099479,0.34676143,58255.0,58246.0,0.171684]
[1725202099480,0.00344243,58253.0,58246.0,0.171684]
[1725202099692,0.00344243,58253.0,58238.0,0.107]
[1725202099693,0.171681,58248.0,58243.0,0.171693]
[1725202099896,0.171681,58248.0,58237.0,0.1]
[1725202099897,0.1392,58246.0,58237.0,0.1]
[1725202100106,0.17511643,58250.0,58246.0,0.171685]
[1725202100332,0.171674,58250.0,58246.0,0.171685]
[1725202100530,0.17511943,58249.0,58244.0,0.171689]
[1725202100773,0.00344243,58250.0,58242.0,0.343391]
[1725202100971,0.00344243,58248.0,58244.0,0.171689]
[1725202101391,0.1072,58251.0,58244.0,0.171689]
[1725202101392,0.171677,58249.0,58244.0,0.171689]
[1725202101811,0.171683,58247.0,58243.0,0.171693]
[1725202102012,0.00344243,58246.0,58243.0,0.171693]
[1725202102228,0.00344243,58246.0,58244.0,0.171691]
[1725202102688,0.00344243,58246.0,58237.0,0.1]
[1725202102689,0.00344243,58246.0,58238.0,0.343415]
[1725202102924,0.171694,58243.0,58242.0,0.001]
[1725202103138,0.17513643,58243.0,58242.0,0.001]
[1725202103483,0.17513643,58243.0,58232.0,0.0008976]
[1725202103484,0.343402,58241.0,58234.0,0.171719]
[1725202103691,0.17514643,58240.0,58232.0,0.0008976]
[1725202103896,0.00344243,58240.0,58237.0,0.171711]
[1725202104254,0.00344243,58240.0,58238.0,0.171707]
[1725202104462,0.1072,58243.0,58235.0,0.343433]
[1725202104463,0.00344243,58242.0,58235.0,0.343433]
[1725202104656,0.00344243,58242.0,58232.0,0.0008976]
[1725202105063,0.171703,58240.0,58236.0,0.171714]
[1725202105269,0.00344243,58239.0,58236.0,0.171714]
[1725202105477,0.00344243,58239.0,58232.0,0.3443456]
[1725202105683,0.00344243,58239.0,58233.0,0.171723]
[1725202105947,0.17171,58238.0,58233.0,0.171723]
[1725202106155,0.00344243,58237.0,58234.0,0.171718]
[1725202106360,0.00344243,58237.0,58233.0,0.171722]
[1725202106576,0.1392,58236.0,58232.0,0.0008976]
[1725202106778,0.1392,58236.0,58233.0,0.009]
[1725202106779,0.00344243,58235.0,58233.0,0.009]
[1725202106995,0.34687843,58235.0,58233.0,0.009]
[1725202107215,0.34687843,58235.0,58232.0,0.0008976]
[1725202107216,0.171723,58233.0,58232.0,0.0008976]
[1725202107867,0.278923,58233.0,58232.0,0.0008976]
[1725202108094,0.1072,58233.0,58232.0,0.0008976]
[1725202108328,0.00344243,58235.0,58233.0,0.011]
[1725202108532,0.17172,58234.0,58233.0,0.011]
[1725202108735,0.761561,58234.0,58233.0,0.011]
[1725202108954,1.45688543,58234.0,58233.0,0.011]
[1725202109618,1.45688543,58234.0,58232.0,0.0008976]
[1725202109619,1.207064,58233.0,58232.0,0.0008976]
[1725202109878,1.346264,58233.0,58232.0,0.0008976]
[1725202110114,1.453464,58233.0,58232.0,0.0028976]
[1725202110552,1.453464,58233.0,58232.0,0.0008976]
[1725202110553,1.896911,58233.0,58232.0,0.0008976]
[1725202110775,1.553464,58233.0,58232.0,0.0008976]
[1725202111216,1.898911,58233.0,58232.0,0.0008976]
[1725202111452,1.931911,58233.0,58232.0,0.0008976]
[1725202111670,1.95885679,58233.0,58232.0,0.0008976]
[1725202111898,2.00286139,58233.0,58232.0,0.0008976]
[1725202112135,2.00286139,58233.0,58209.0,0.50540786]
[1725202112136,1.562565,58231.0,58209.0,0.50540786]
[1725202112381,1.003765,58223.0,58209.0,0.50540786]
[1725202112604,1.800777,58223.0,58209.0,0.50540786]
[1725202112829,1.800777,58223.0,58200.0,0.0008987]
[1725202112830,1.99232864,58223.0,58210.0,0.50540786]
[1725202113040,1.99232864,58223.0,58200.0,0.0008987]
[1725202113247,2.10792864,58223.0,58200.0,0.0008987]
[1725202113506,0.343601,58207.0,58200.0,0.0008987]
[1725202113732,0.859002,58207.0,58206.0,0.50540786]
[1725202113940,0.859002,58207.0,58200.0,0.0008987]
[1725202113941,0.171818,58201.0,58200.0,0.0008987]
[1725202114614,0.653439,58203.0,58200.0,0.0008987]
[1725202114840,0.85909,58201.0,58200.0,0.0008987]
[1725202115058,1.22968154,58201.0,58200.0,0.0008987]
[1725202115271,0.88604554,58201.0,58200.0,0.0008987]
[1725202115717,0.02695554,58201.0,58200.0,0.0008987]
[1725202115927,0.03039797,58201.0,58200.0,0.0008987]
[1725202116143,0.02695554,58201.0,58200.0,0.1727197]
[1725202116349,0.54341554,58201.0,58200.0,0.0098987]
[1725202116759,0.54241554,58201.0,58200.0,0.1727197]
[1725202116973,0.54241554,58201.0,58200.0,0.0008987]
[1725202117612,0.54241554,58201.0,58200.0,0.1727197]
[1725202117830,0.54241554,58201.0,58200.0,0.0088987]
[1725202118048,0.54341554,58201.0,58200.0,0.0088987]
[1725202118251,0.54341554,58201.0,58200.0,0.1807197]
[1725202118458,0.54341554,58201.0,58200.0,0.0088987]
[1725202119096,0.71523354,58201.0,58200.0,0.0088987]
[1725202119316,1.031914,58201.0,58200.0,0.0088987]
[1725202120017,1.52015,58201.0,58200.0,0.0088987]
[1725202120236,1.62835,58201.0,58200.0,0.0088987]
[1725202120464,1.976986,58201.0,58200.0,0.0088987]
[1725202120674,2.28053764,58201.0,58200.0,0.0088987]
[1725202121577,2.27953764,58201.0,58200.0,0.0008987]
[1725202121783,2.28530788,58201.0,58200.0,0.0008987]
[1725202122430,2.14371756,58201.0,58200.0,0.0008987]
[1725202123751,2.14371756,58201.0,58200.0,0.0028987]
[1725202124163,2.14371756,58201.0,58200.0,0.0008987]
[1725202124629,2.14671756,58201.0,58200.0,0.0008987]
[1725202125252,1.76431132,58201.0,58200.0,0.0008987]
[1725202125663,1.73735,58201.0,58200.0,0.0008987]
[1725202126320,2.27753764,58201.0,58200.0,0.0008987]
[1725202126540,2.28253764,58201.0,58200.0,0.0008987]
[1725202128067,1.133914,58201.0,58200.0,0.0008987]
[1725202128529,1.48255,58201.0,58200.0,0.0008987]
[1725202128901,1.47755,58201.0,58200.0,0.0008987]
[1725202129411,1.821186,58201.0,58200.0,0.0008987]
[1725202129661,1.47755,58201.0,58200.0,0.0008987]
[1725202129900,1.826186,58201.0,58200.0,0.0008987]
[1725202130119,1.99774536,58201.0,58200.0,0.0008987]
[1725202130334,2.10594536,58201.0,58200.0,0.0008987]
[1725202130550,2.12894536,58201.0,58200.0,0.0008987]
[1725202130795,1.87614536,58201.0,58200.0,0.0008987]
[1725202130982,0.51846,58201.0,58200.0,0.0008987]
[1725202131658,0.690278,58201.0,58200.0,0.0008987]
[1725202132106,0.51846,58201.0,58200.0,0.0008987]
[1725202132333,0.51846,58201.0,58200.0,0.1727197]
[1725202132582,0.51546,58201.0,58200.0,0.0008987]
[1725202132836,0.51846,58201.0,58200.0,0.0008987]
[1725202133348,0.51546,58201.0,58200.0,0.0008987]
[1725202133856,0.51546,58201.0,58200.0,0.1747197]
[1725202134112,0.51546,58201.0,58200.0,0.8620037]
[1725202134581,0.51546,58201.0,58200.0,0.5183617]
[1725202135743,0.51546,58201.0,58198.0,0.0008987]
[1725202135744,0.4816383,58200.0,58199.0,0.343648]
[1725202135982,0.4816383,58200.0,58199.0,0.515472]
[1725202135983,0.9970983,58200.0,58199.0,0.515472]
[1725202136223,0.73980162,58200.0,58199.0,0.515472]
[1725202137188,0.73980162,58200.0,58199.0,0.518472]
[1725202138150,0.73980162,58200.0,58199.0,0.003]
[1725202138858,0.73980162,58200.0,58199.0,0.0038998]
[1725202139351,0.91162262,58200.0,58199.0,0.0038998]
[1725202139618,1.26026462,58200.0,58199.0,0.0038998]
[1725202139848,2.04754862,58200.0,58199.0,0.0038998]
[1725202140805,2.05346984,58200.0,58199.0,0.0038998]
[1725202141026,2.32246984,58200.0,58199.0,0.0038998]
[1725202141231,2.48902148,58200.0,58199.0,0.0038998]
[1725202141699,2.84266348,58200.0,58199.0,0.0038998]
[1725202141907,2.54748072,58200.0,58199.0,0.0038998]
[1725202142573,2.54748072,58200.0,58199.0,0.0008998]
[1725202143058,2.54948072,58200.0,58199.0,0.0008998]
[1725202143684,2.56348072,58200.0,58199.0,0.0018998]
[1725202143932,2.90712272,58200.0,58199.0,0.0018998]
[1725202144370,2.89112272,58200.0,58199.0,0.0008998]
[1725202144600,2.90512272,58200.0,58199.0,0.0018998]
[1725202145916,3.38122572,58200.0,58199.0,0.0008998]
[1725202146336,3.39522572,58200.0,58199.0,0.0008998]
[1725202146833,2.38092908,58200.0,58199.0,0.0008998]
[1725202147268,2.39492908,58200.0,58199.0,0.0008998]
[1725202147714,2.38092908,58200.0,58199.0,0.0008998]
[1725202149254,2.39492908,58200.0,58199.0,0.0008998]
[1725202149675,2.38092908,58200.0,58199.0,0.0008998]
[1725202149899,2.56248072,58200.0,58199.0,0.0008998]
[1725202150323,2.56048072,58200.0,58199.0,0.0008998]
[1725202150766,2.58744519,58200.0,58199.0,0.0008998]
[1725202150982,2.58744519,58200.0,58179.0,0.0008987]
[1725202150983,0.63654,58180.0,58179.0,0.0008987]
[1725202151192,1.94663286,58180.0,58179.0,0.0008987]
[1725202151406,2.29839286,58180.0,58179.0,0.0008987]
[1725202151618,2.45639286,58180.0,58179.0,0.0008987]
[1725202152318,2.80015286,58180.0,58179.0,0.0008987]
[1725202152534,2.80015286,58180.0,58179.0,7e-07]
[1725202152535,3.29968986,58180.0,58179.0,7e-07]
[1725202152755,1.810982,58174.0,58173.0,0.008976]
[1725202152972,1.810982,58174.0,58146.0,0.1076]
[1725202152973,1.00952,58172.0,58146.0,0.1076]
[1725202153185,1.00952,58172.0,58147.0,0.005]
[1725202153186,2.15847775,58172.0,58147.0,0.005]
[1725202153411,2.16950775,58172.0,58147.0,0.005]
[1725202153829,2.16950775,58172.0,58157.0,0.63910786]
[1725202154035,2.16950775,58172.0,58157.0,0.1337]
[1725202154240,2.20748245,58172.0,58153.0,0.1337]
[1725202154447,2.18050775,58172.0,58153.0,0.1337]
[1725202154681,2.34905939,58172.0,58153.0,0.1337]
[1725202155320,1.547347,58164.0,58141.0,0.013987]
[1725202155536,2.01386586,58164.0,58141.0,0.013987]
[1725202155768,2.13686586,58164.0,58141.0,0.013987]
[1725202155960,2.3054175,58164.0,58141.0,0.013987]
[1725202156193,1.92841086,58164.0,58151.0,0.1307]
[1725202156407,1.92841086,58164.0,58152.0,0.1101]
[1725202157267,1.94826395,58164.0,58152.0,0.1101]
[1725202157696,1.93426395,58164.0,58152.0,0.1101]
[1725202158532,1.8258414,58164.0,58152.0,0.1101]
[1725202158741,1.8039414,58164.0,58152.0,0.1101]
[1725202158938,1.97249304,58164.0,58152.0,0.1101]
[1725202159182,1.97249304,58164.0,58140.0,0.1315987]
[1725202159183,2.82615704,58164.0,58140.0,0.1315987]
[1725202159396,3.05378356,58164.0,58141.0,0.51439486]
[1725202159831,3.36531204,58164.0,58141.0,0.51439486]
[1725202160060,2.71074804,58164.0,58141.0,0.51439486]
[1725202160267,2.69674804,58164.0,58141.0,0.51439486]
[1725202160692,2.71074804,58164.0,58141.0,0.51439486]
[1725202161130,2.69674804,58164.0,58141.0,0.51439486]
[1725202161964,3.01362559,58164.0,58141.0,0.51439486]
[1725202162257,0.859962,58142.0,58141.0,0.51439486]
[1725202162467,1.64856586,58142.0,58141.0,0.51439486]
[1725202162697,1.64856586,58142.0,58141.0,0.008987]
[1725202163588,1.64956586,58142.0,58141.0,0.008987]
[1725202164020,0.61761086,58142.0,58141.0,0.148887]
[1725202164261,0.44561886,58142.0,58141.0,0.148887]
[1725202164493,0.61761086,58142.0,58141.0,0.148887]
[1725202164712,0.44561886,58142.0,58141.0,0.148887]
[1725202165206,0.61761086,58142.0,58141.0,0.148887]
[1725202165646,0.44561886,58142.0,58141.0,0.148887]
[1725202165859,0.44561886,58142.0,58141.0,0.428582]
[1725202166100,0.44561886,58142.0,58141.0,0.256587]
[1725202166309,0.44561886,58142.0,58141.0,0.426582]
[1725202166735,0.44561886,58142.0,58141.0,0.254587]
[1725202167648,0.44561886,58142.0,58141.0,0.426582]
[1725202167866,0.44561886,58142.0,58141.0,0.254587]
[1725202168511,0.44561886,58142.0,58141.0,0.426582]
[1725202168941,0.44561886,58142.0,58141.0,0.254587]
[1725202169413,0.44561886,58142.0,58141.0,0.426582]
[1725202170182,0.44561886,58142.0,58141.0,0.254587]
[1725202171121,0.61761086,58142.0,58141.0,0.254587]
[1725202171332,0.98459586,58142.0,58141.0,0.008987]
[1725202171565,1.67256586,58142.0,58141.0,0.008987]
[1725202171771,1.77256586,58142.0,58141.0,0.008987]
[1725202172199,1.77854877,58142.0,58141.0,0.008987]
[1725202172431,1.94610041,58142.0,58141.0,0.008987]
[1725202172650,1.94810041,58142.0,58141.0,0.008987]
[1725202174816,2.29208541,58142.0,58141.0,0.008987]
[1725202175245,2.40018541,58142.0,58141.0,0.008987]
[1725202175665,2.39818541,58142.0,58141.0,0.008987]
[1725202176088,2.41018541,58142.0,58141.0,0.008987]
[1725202176493,2.39818541,58142.0,58141.0,0.008987]
[1725202176914,2.41018541,58142.0,58141.0,0.008987]
[1725202177580,2.75417041,58142.0,58141.0,0.008987]
[1725202177806,3.24674441,58142.0,58141.0,0.008987]
[1725202178450,3.42804441,58142.0,58141.0,0.008987]
[1725202178948,3.42804441,58142.0,58115.0,0.2401]
[1725202178949,0.1813,58139.0,58115.0,0.2401]
[1725202179225,0.860272,58121.0,58115.0,0.2401]
[1725202179485,0.860272,58121.0,58110.0,0.50540786]
[1725202179486,1.99310886,58121.0,58110.0,0.50540786]
[1725202179725,2.14310647,58121.0,58110.0,0.50540786]
[1725202179956,2.31165811,58121.0,58109.0,0.1334]
[1725202180523,2.31165811,58121.0,58108.0,0.1067]
[1725202180524,2.31165811,58121.0,58099.0,0.50540786]
[1725202180740,2.31165811,58121.0,58101.0,0.1334]
[1725202180741,3.65048011,58121.0,58101.0,0.1334]
[1725202180994,3.65048011,58121.0,58100.0,0.50540786]
[1725202180995,1.892632,58120.0,58100.0,0.50540786]
[1725202181241,3.09781686,58120.0,58100.0,0.50540786]
[1725202181475,2.90953272,58120.0,58100.0,0.50540786]
[1725202181714,2.25034272,58120.0,58107.0,0.1067]
[1725202182927,2.26434272,58120.0,58107.0,0.1067]
[1725202183428,1.74902086,58120.0,58107.0,0.1067]
[1725202183691,1.74902086,58120.0,58106.0,0.1334]
[1725202183692,1.30490586,58120.0,58119.0,0.249087]
[1725202183917,0.63067586,58120.0,58119.0,0.249087]
[1725202184159,1.31890586,58120.0,58119.0,0.249087]
[1725202184411,1.37621801,58120.0,58119.0,0.008987]
[1725202184670,1.72033301,58120.0,58119.0,0.008987]
[1725202185351,1.70633301,58120.0,58119.0,0.008987]
[1725202185584,1.31890586,58120.0,58119.0,0.008987]
[1725202185802,0.45861886,58120.0,58119.0,0.421147]
[1725202186020,0.44461886,58120.0,58119.0,0.421147]
[1725202186240,0.44461886,58120.0,58119.0,1.124389]
[1725202186478,0.44461886,58120.0,58119.0,0.782268]
[1725202187945,0.44461886,58120.0,58119.0,1.126389]
[1725202188186,0.44461886,58120.0,58119.0,0.256087]
[1725202188449,0.44461886,58120.0,58119.0,0.249087]
[1725202188684,1.00525275,58120.0,58119.0,0.249087]
[1725202188929,0.96079086,58120.0,58119.0,0.249087]
[1725202189682,0.44461886,58120.0,58119.0,0.249087]
[1725202189900,0.44561886,58120.0,58119.0,0.254087]
[1725202190121,0.61767586,58120.0,58119.0,0.249087]
[1725202190563,1.30590586,58120.0,58119.0,0.249087]
[1725202191235,1.30590586,58120.0,58119.0,0.008987]
[1725202191236,1.65002086,58120.0,58119.0,0.008987]
[1725202191451,0.96179086,58120.0,58119.0,0.008987]
[1725202191875,0.96079086,58120.0,58119.0,0.008987]
[1725202192098,0.61667586,58120.0,58119.0,0.139087]
[1725202192529,0.44561886,58120.0,58119.0,0.139087]
[1725202192745,0.61767586,58120.0,58119.0,0.139087]
[1725202192976,0.61667586,58120.0,58119.0,0.139087]
[1725202193373,0.61767586,58120.0,58119.0,0.139087]
[1725202193788,0.61767586,58120.0,58119.0,0.249087]
[1725202193998,0.44561886,58120.0,58119.0,0.249087]
[1725202194660,0.61767586,58120.0,58119.0,0.249087]
[1725202194879,0.44561886,58120.0,58119.0,0.249087]
[1725202196557,0.61767586,58120.0,58119.0,0.249087]
[1725202196792,0.96179086,58120.0,58119.0,0.249087]
[1725202197394,1.30590586,58120.0,58119.0,0.249087]
[1725202197581,0.61767586,58120.0,58119.0,0.249087]
[1725202197844,0.44561886,58120.0,58119.0,0.249087]
[1725202198535,0.96179086,58120.0,58119.0,0.249087]
[1725202198750,0.96179086,58120.0,58119.0,0.008987]
[1725202198963,1.78330944,58120.0,58119.0,0.008987]
[1725202199753,1.80530944,58120.0,58119.0,0.008987]
[1725202199957,1.80612944,58120.0,58119.0,0.008987]
[1725202200164,2.25608933,58120.0,58119.0,0.008987]
[1725202200566,1.88897433,58120.0,58119.0,0.008987]
[1725202200769,1.75568575,58120.0,58119.0,0.008987]
[1725202200941,1.40572586,58120.0,58119.0,0.008987]
[1725202201347,1.74984086,58120.0,58119.0,0.008987]
[1725202201549,1.77284086,58120.0,58119.0,0.008987]